[Event "Titled Tuesday Blitz October 12 2021"]
[White "Gasanov, Eldar"]
[Black "Perez Ponsa, Federico"]
[WhiteFideId "14104466"]
[BlackFideId "117927"]
[WhiteElo "2454"]
[BlackElo "2672"]
[Result "0-1"]
[Round "09"]
[TimeControl "180+1"]
[Date "2021.10.12"]
[WhiteClock "0:00:13"]
[BlackClock "0:01:17"]

1. d4 {[%clk 0:03:00]}  Nf6 {[%clk 0:02:58]} 2. c4 {[%clk 0:03:01]}  e6 {[%clk 0:02:57]} 3. Nc3 {[%clk 0:03:00]}  Bb4 {[%clk 0:02:57]} 4. Bg5 {[%clk 0:03:01]}  c5 {[%clk 0:02:54]} 5. d5 {[%clk 0:03:00]}  d6 {[%clk 0:02:50]} 6. e3 {[%clk 0:02:59]}  exd5 {[%clk 0:02:50]} 7. cxd5 {[%clk 0:02:59]}  Nbd7 {[%clk 0:02:50]} 8. Bb5 {[%clk 0:02:58]}  a6 {[%clk 0:02:46]} 9. Bxd7+ {[%clk 0:02:57]}  Bxd7 {[%clk 0:02:47]} 10. Ne2 {[%clk 0:02:57]}  h6 {[%clk 0:02:46]} 11. Bh4 {[%clk 0:02:53]}  O-O {[%clk 0:02:42]} 12. O-O {[%clk 0:02:52]}  Re8 {[%clk 0:02:42]} 13. Qc2 {[%clk 0:02:44]}  b5 {[%clk 0:02:34]} 14. Ne4 {[%clk 0:02:17]}  g5 {[%clk 0:02:17]} 15. Nxd6 {[%clk 0:02:00]}  gxh4 {[%clk 0:02:14]} 16. a3 {[%clk 0:02:00]}  Ba5 {[%clk 0:02:10]} 17. Qxc5 {[%clk 0:01:27]}  Re5 {[%clk 0:02:02]} 18. Nf4 {[%clk 0:01:06]}  h3 {[%clk 0:01:50]} 19. Qd4 {[%clk 0:00:55]}  Rg5 {[%clk 0:01:49]} 20. Nb7 {[%clk 0:00:42]}  Bb6 {[%clk 0:01:49]} 21. Qc3 {[%clk 0:00:38]}  Qe7 {[%clk 0:01:46]} 22. d6 {[%clk 0:00:22]}  Qe4 {[%clk 0:01:34]} 23. Qxf6 {[%clk 0:00:13]}  Rxg2+ {[%clk 0:01:21]} 24. Kh1 {[%clk 0:00:13]}  Rxf2+ {[%clk 0:01:21]} 25. Kg1 {[%clk 0:00:13]}  Rg2+ {[%clk 0:01:22]} 26. Kh1 {[%clk 0:00:13]}  Rg3+ {[%clk 0:01:17]} 0-1


[Site "https://www.chess.com"]

[Event "Titled Tuesday Blitz October 12 2021"]
[White "Gasanov, Zaur"]
[Black "Svane, Frederik"]
[WhiteFideId "34125970"]
[BlackFideId "12923044"]
[WhiteElo "2099"]
[BlackElo "2459"]
[Result "0-1"]
[Round "09"]
[TimeControl "180+1"]
[Date "2021.10.12"]
[WhiteClock "0:00:03"]
[BlackClock "0:00:10"]

1. d4 {[%clk 0:03:00]}  Nf6 {[%clk 0:02:50]} 2. Nf3 {[%clk 0:02:59]}  e6 {[%clk 0:02:40]} 3. Bf4 {[%clk 0:02:56]}  b6 {[%clk 0:02:37]} 4. e3 {[%clk 0:02:56]}  Be7 {[%clk 0:02:36]} 5. h3 {[%clk 0:02:56]}  O-O {[%clk 0:02:35]} 6. Be2 {[%clk 0:02:55]}  c5 {[%clk 0:02:35]} 7. O-O {[%clk 0:02:56]}  Ba6 {[%clk 0:02:34]} 8. c3 {[%clk 0:02:55]}  Bxe2 {[%clk 0:02:30]} 9. Qxe2 {[%clk 0:02:56]}  Nc6 {[%clk 0:02:29]} 10. Nbd2 {[%clk 0:02:54]}  d5 {[%clk 0:02:29]} 11. Rfd1 {[%clk 0:02:52]}  Qc8 {[%clk 0:02:17]} 12. Rac1 {[%clk 0:02:48]}  Qb7 {[%clk 0:02:14]} 13. dxc5 {[%clk 0:02:43]}  bxc5 {[%clk 0:02:12]} 14. b3 {[%clk 0:02:31]}  a5 {[%clk 0:02:12]} 15. Rb1 {[%clk 0:02:22]}  Qa6 {[%clk 0:01:59]} 16. Qxa6 {[%clk 0:02:14]}  Rxa6 {[%clk 0:01:59]} 17. c4 {[%clk 0:02:10]}  a4 {[%clk 0:01:58]} 18. cxd5 {[%clk 0:02:09]}  Nxd5 {[%clk 0:01:57]} 19. Rbc1 {[%clk 0:02:00]}  Rfa8 {[%clk 0:01:36]} 20. Bh2 {[%clk 0:01:52]}  Ncb4 {[%clk 0:01:31]} 21. e4 {[%clk 0:01:35]}  Nxa2 {[%clk 0:01:14]} 22. exd5 {[%clk 0:01:33]}  Nxc1 {[%clk 0:01:15]} 23. Rxc1 {[%clk 0:01:34]}  axb3 {[%clk 0:01:15]} 24. Nxb3 {[%clk 0:01:33]}  exd5 {[%clk 0:01:15]} 25. Be5 {[%clk 0:01:31]}  d4 {[%clk 0:01:12]} 26. Kh2 {[%clk 0:01:23]}  f6 {[%clk 0:01:08]} 27. Bg3 {[%clk 0:01:20]}  Ra3 {[%clk 0:00:34]} 28. Nbd2 {[%clk 0:01:16]}  Rc3 {[%clk 0:00:25]} 29. Rb1 {[%clk 0:01:11]}  Rc2 {[%clk 0:00:22]} 30. Rb7 {[%clk 0:01:10]}  Bf8 {[%clk 0:00:22]} 31. Rc7 {[%clk 0:00:58]}  d3 {[%clk 0:00:16]} 32. h4 {[%clk 0:00:51]}  Ra4 {[%clk 0:00:16]} 33. Rc8 {[%clk 0:00:48]}  Kf7 {[%clk 0:00:16]} 34. Rc7+ {[%clk 0:00:48]}  Ke6 {[%clk 0:00:16]} 35. Rc6+ {[%clk 0:00:32]}  Kd7 {[%clk 0:00:15]} 36. Rc7+ {[%clk 0:00:32]}  Kd8 {[%clk 0:00:15]} 37. Rf7 {[%clk 0:00:27]}  Ke8 {[%clk 0:00:15]} 38. Rb7 {[%clk 0:00:26]}  c4 {[%clk 0:00:15]} 39. Rb8+ {[%clk 0:00:21]}  Kf7 {[%clk 0:00:15]} 40. Rb7+ {[%clk 0:00:08]}  Kg6 {[%clk 0:00:15]} 41. Ne4 {[%clk 0:00:03]}  c3 {[%clk 0:00:14]} 42. Nd6 {[%clk 0:00:04]}  Bxd6 {[%clk 0:00:13]} 43. Bxd6 {[%clk 0:00:04]}  d2 {[%clk 0:00:13]} 44. g4 {[%clk 0:00:03]}  Rxg4 {[%clk 0:00:11]} 45. Bf8 {[%clk 0:00:03]}  Kh6 {[%clk 0:00:10]} 0-1


[Site "https://www.chess.com"]

[Event "Titled Tuesday Blitz October 12 2021"]
[White "Gelman, Alexander"]
[Black "Keymer, Vincent"]
[WhiteFideId "4118316"]
[BlackFideId "12940690"]
[WhiteElo "2375"]
[BlackElo "2524"]
[Result "1-0"]
[Round "09"]
[TimeControl "180+1"]
[Date "2021.10.12"]
[WhiteClock "0:00:13"]
[BlackClock "0:00:01"]

1. d4 {[%clk 0:03:00]}  Nf6 {[%clk 0:02:58]} 2. Nc3 {[%clk 0:03:01]}  d5 {[%clk 0:02:58]} 3. Bf4 {[%clk 0:03:02]}  e6 {[%clk 0:02:58]} 4. Nb5 {[%clk 0:03:02]}  Bb4+ {[%clk 0:02:57]} 5. c3 {[%clk 0:03:02]}  Ba5 {[%clk 0:02:58]} 6. a4 {[%clk 0:03:00]}  a6 {[%clk 0:02:54]} 7. b4 {[%clk 0:03:01]}  Bb6 {[%clk 0:02:51]} 8. a5 {[%clk 0:02:51]}  axb5 {[%clk 0:02:00]} 9. axb6 {[%clk 0:02:51]}  Na6 {[%clk 0:01:54]} 10. bxc7 {[%clk 0:02:28]}  Nxc7 {[%clk 0:01:53]} 11. e3 {[%clk 0:02:19]}  Bd7 {[%clk 0:01:47]} 12. Bd3 {[%clk 0:02:05]}  O-O {[%clk 0:01:41]} 13. Nf3 {[%clk 0:02:04]}  Ne4 {[%clk 0:01:22]} 14. O-O {[%clk 0:01:30]}  Bc6 {[%clk 0:01:13]} 15. Ne5 {[%clk 0:01:16]}  Qe8 {[%clk 0:00:48]} 16. Qc2 {[%clk 0:01:06]}  h6 {[%clk 0:00:18]} 17. f3 {[%clk 0:00:58]}  Nf6 {[%clk 0:00:18]} 18. g4 {[%clk 0:00:44]}  Qe7 {[%clk 0:00:18]} 19. h4 {[%clk 0:00:44]}  Rfc8 {[%clk 0:00:16]} 20. Rae1 {[%clk 0:00:35]}  Be8 {[%clk 0:00:16]} 21. Re2 {[%clk 0:00:33]}  Nd7 {[%clk 0:00:14]} 22. g5 {[%clk 0:00:29]}  Nxe5 {[%clk 0:00:14]} 23. Bxe5 {[%clk 0:00:29]}  hxg5 {[%clk 0:00:08]} 24. hxg5 {[%clk 0:00:22]}  Qxg5+ {[%clk 0:00:03]} 25. Kh1 {[%clk 0:00:20]}  f6 {[%clk 0:00:03]} 26. Bf4 {[%clk 0:00:17]}  Qh5+ {[%clk 0:00:02]} 27. Rh2 {[%clk 0:00:17]}  Qf7 {[%clk 0:00:01]} 28. Bh7+ {[%clk 0:00:13]}  Kf8 {[%clk 0:00:01]} 29. Bd6+ {[%clk 0:00:13]} 1-0


[Site "https://www.chess.com"]

[Event "Titled Tuesday Blitz October 12 2021"]
[White "Kamsky, Gata"]
[Black "Martinovici, Ilia"]
[WhiteFideId "2000024"]
[BlackFideId "13907034"]
[WhiteElo "2603"]
[BlackElo "2303"]
[Result "1-0"]
[Round "09"]
[TimeControl "180+1"]
[Date "2021.10.12"]
[WhiteClock "0:00:15"]
[BlackClock "0:00:03"]

1. e4 {[%clk 0:03:00]}  c5 {[%clk 0:02:58]} 2. Nc3 {[%clk 0:03:00]}  Nc6 {[%clk 0:02:57]} 3. Bc4 {[%clk 0:03:00]}  e6 {[%clk 0:02:57]} 4. Nf3 {[%clk 0:02:58]}  Nf6 {[%clk 0:02:56]} 5. O-O {[%clk 0:02:58]}  d5 {[%clk 0:02:57]} 6. exd5 {[%clk 0:02:57]}  exd5 {[%clk 0:02:57]} 7. Bb5 {[%clk 0:02:58]}  d4 {[%clk 0:02:57]} 8. Ne2 {[%clk 0:02:52]}  Bd7 {[%clk 0:02:56]} 9. Ng3 {[%clk 0:02:42]}  Be7 {[%clk 0:02:55]} 10. d3 {[%clk 0:02:40]}  O-O {[%clk 0:02:55]} 11. Bg5 {[%clk 0:02:37]}  Nd5 {[%clk 0:02:49]} 12. Bxe7 {[%clk 0:02:35]}  Ncxe7 {[%clk 0:02:50]} 13. Bxd7 {[%clk 0:02:18]}  Qxd7 {[%clk 0:02:51]} 14. Re1 {[%clk 0:02:14]}  Rfe8 {[%clk 0:02:50]} 15. Ne5 {[%clk 0:02:13]}  Qc7 {[%clk 0:02:41]} 16. Qf3 {[%clk 0:02:11]}  f6 {[%clk 0:02:41]} 17. Nc4 {[%clk 0:02:05]}  Qd7 {[%clk 0:02:41]} 18. a3 {[%clk 0:02:03]}  Ng6 {[%clk 0:02:33]} 19. Nf5 {[%clk 0:01:56]}  Nde7 {[%clk 0:02:11]} 20. Nfd6 {[%clk 0:01:45]}  Reb8 {[%clk 0:02:07]} 21. a4 {[%clk 0:01:45]}  b6 {[%clk 0:02:00]} 22. Re2 {[%clk 0:01:35]}  a6 {[%clk 0:01:54]} 23. Ne4 {[%clk 0:01:08]}  Qc7 {[%clk 0:01:30]} 24. g3 {[%clk 0:00:54]}  Ra7 {[%clk 0:01:07]} 25. h4 {[%clk 0:00:46]}  b5 {[%clk 0:01:04]} 26. axb5 {[%clk 0:00:45]}  axb5 {[%clk 0:01:05]} 27. Rxa7 {[%clk 0:00:44]}  Qxa7 {[%clk 0:01:06]} 28. Ncd6 {[%clk 0:00:42]}  Rf8 {[%clk 0:00:32]} 29. Nf5 {[%clk 0:00:40]}  Ne5 {[%clk 0:00:26]} 30. Nxe7+ {[%clk 0:00:34]}  Qxe7 {[%clk 0:00:27]} 31. Qf5 {[%clk 0:00:32]}  c4 {[%clk 0:00:19]} 32. f4 {[%clk 0:00:24]}  Nc6 {[%clk 0:00:08]} 33. Qd5+ {[%clk 0:00:19]}  Qf7 {[%clk 0:00:08]} 34. Qxc6 {[%clk 0:00:18]}  cxd3 {[%clk 0:00:07]} 35. cxd3 {[%clk 0:00:18]}  h5 {[%clk 0:00:07]} 36. Nd6 {[%clk 0:00:17]}  Qg6 {[%clk 0:00:07]} 37. Kf2 {[%clk 0:00:15]}  Qxd3 {[%clk 0:00:06]} 38. Qd5+ {[%clk 0:00:15]}  Kh8 {[%clk 0:00:04]} 39. Qxh5+ {[%clk 0:00:15]}  Kg8 {[%clk 0:00:05]} 40. Qd5+ {[%clk 0:00:15]}  Kh8 {[%clk 0:00:06]} 41. Qxb5 {[%clk 0:00:15]}  Qg6 {[%clk 0:00:04]} 42. Qf5 {[%clk 0:00:14]}  Qh6 {[%clk 0:00:03]} 43. Re8 {[%clk 0:00:14]}  Rxe8 {[%clk 0:00:03]} 44. Nf7+ {[%clk 0:00:15]}  Kg8 {[%clk 0:00:03]} 45. Nxh6+ {[%clk 0:00:15]} 1-0


[Site "https://www.chess.com"]

[Event "Titled Tuesday Blitz October 12 2021"]
[White "Krivonosov, Oleg"]
[Black "Tologon tegin, Semetei"]
[WhiteFideId "11600349"]
[BlackFideId "13800574"]
[WhiteElo "2469"]
[BlackElo "2224"]
[Result "1/2-1/2"]
[Round "09"]
[TimeControl "180+1"]
[Date "2021.10.12"]
[WhiteClock "0:00:09"]
[BlackClock "0:00:12"]

1. Nf3 {[%clk 0:03:00]}  Nf6 {[%clk 0:02:57]} 2. c4 {[%clk 0:03:00]}  e6 {[%clk 0:02:55]} 3. g3 {[%clk 0:02:59]}  b6 {[%clk 0:02:54]} 4. Bg2 {[%clk 0:02:58]}  Bb7 {[%clk 0:02:55]} 5. O-O {[%clk 0:02:58]}  g6 {[%clk 0:02:56]} 6. b3 {[%clk 0:02:57]}  Bg7 {[%clk 0:02:56]} 7. Bb2 {[%clk 0:02:57]}  O-O {[%clk 0:02:57]} 8. Nc3 {[%clk 0:02:57]}  c5 {[%clk 0:02:52]} 9. d4 {[%clk 0:02:49]}  Ne4 {[%clk 0:02:51]} 10. Rc1 {[%clk 0:02:42]}  d5 {[%clk 0:02:32]} 11. cxd5 {[%clk 0:02:41]}  exd5 {[%clk 0:02:28]} 12. dxc5 {[%clk 0:02:40]}  bxc5 {[%clk 0:02:27]} 13. Qc2 {[%clk 0:02:20]}  Nxc3 {[%clk 0:02:23]} 14. Bxc3 {[%clk 0:02:19]}  d4 {[%clk 0:02:23]} 15. Bb2 {[%clk 0:02:13]}  Nd7 {[%clk 0:02:23]} 16. Ne1 {[%clk 0:02:04]}  Bxg2 {[%clk 0:02:21]} 17. Nxg2 {[%clk 0:02:05]}  Rc8 {[%clk 0:02:11]} 18. Nf4 {[%clk 0:02:04]}  Re8 {[%clk 0:02:08]} 19. Nd3 {[%clk 0:02:00]}  Qe7 {[%clk 0:02:01]} 20. Rfe1 {[%clk 0:01:59]}  h5 {[%clk 0:01:56]} 21. Ba3 {[%clk 0:01:56]}  Bf8 {[%clk 0:01:53]} 22. Qd2 {[%clk 0:01:48]}  Qf6 {[%clk 0:01:44]} 23. Qf4 {[%clk 0:01:42]}  Qa6 {[%clk 0:01:42]} 24. Bb2 {[%clk 0:01:38]}  Bd6 {[%clk 0:01:18]} 25. Qf3 {[%clk 0:01:27]}  Qxa2 {[%clk 0:01:16]} 26. Ra1 {[%clk 0:01:27]}  Qxb3 {[%clk 0:01:16]} 27. Rxa7 {[%clk 0:01:26]}  Ne5 {[%clk 0:01:17]} 28. Nxe5 {[%clk 0:01:20]}  Qxf3 {[%clk 0:01:15]} 29. Nxf3 {[%clk 0:01:20]}  Rb8 {[%clk 0:01:14]} 30. Ba3 {[%clk 0:01:16]}  Rb3 {[%clk 0:01:13]} 31. Kf1 {[%clk 0:01:10]}  Rc3 {[%clk 0:00:45]} 32. Bc1 {[%clk 0:01:00]}  Bf8 {[%clk 0:00:34]} 33. Rd7 {[%clk 0:00:52]}  Bg7 {[%clk 0:00:32]} 34. Bd2 {[%clk 0:00:47]}  Rc2 {[%clk 0:00:31]} 35. Rc1 {[%clk 0:00:43]}  Rxc1+ {[%clk 0:00:23]} 36. Bxc1 {[%clk 0:00:44]}  Rb8 {[%clk 0:00:17]} 37. Rc7 {[%clk 0:00:40]}  Bf8 {[%clk 0:00:16]} 38. Bf4 {[%clk 0:00:35]}  Rb1+ {[%clk 0:00:15]} 39. Kg2 {[%clk 0:00:33]}  Rb2 {[%clk 0:00:16]} 40. Bd2 {[%clk 0:00:17]}  Bd6 {[%clk 0:00:12]} 41. Rc6 {[%clk 0:00:16]}  Be7 {[%clk 0:00:12]} 42. h4 {[%clk 0:00:16]}  Kg7 {[%clk 0:00:12]} 43. Rc7 {[%clk 0:00:16]}  Bd6 {[%clk 0:00:12]} 44. Rd7 {[%clk 0:00:14]}  Bf8 {[%clk 0:00:12]} 45. Kf1 {[%clk 0:00:12]}  Rb1+ {[%clk 0:00:12]} 46. Kg2 {[%clk 0:00:12]}  Rb2 {[%clk 0:00:12]} 47. Rd5 {[%clk 0:00:11]}  Rc2 {[%clk 0:00:12]} 48. Rd7 {[%clk 0:00:09]}  Rb2 {[%clk 0:00:12]} 1/2-1/2


[Site "https://www.chess.com"]

[Event "Titled Tuesday Blitz October 12 2021"]
[White "Maly, Alexey"]
[Black "Nogerbek, Kazybek"]
[WhiteFideId "14103184"]
[BlackFideId "13710427"]
[WhiteElo "2294"]
[BlackElo "2436"]
[Result "1/2-1/2"]
[Round "09"]
[TimeControl "180+1"]
[Date "2021.10.12"]
[WhiteClock "0:02:45"]
[BlackClock "0:02:34"]

1. d4 {[%clk 0:03:00]}  d5 {[%clk 0:02:56]} 2. c4 {[%clk 0:03:01]}  e6 {[%clk 0:02:55]} 3. Nf3 {[%clk 0:03:01]}  Nf6 {[%clk 0:02:56]} 4. e3 {[%clk 0:03:01]}  c5 {[%clk 0:02:56]} 5. dxc5 {[%clk 0:03:01]}  Bxc5 {[%clk 0:02:56]} 6. a3 {[%clk 0:03:01]}  O-O {[%clk 0:02:51]} 7. Nc3 {[%clk 0:03:02]}  dxc4 {[%clk 0:02:47]} 8. Bxc4 {[%clk 0:03:01]}  b6 {[%clk 0:02:47]} 9. Qxd8 {[%clk 0:02:58]}  Rxd8 {[%clk 0:02:48]} 10. b4 {[%clk 0:02:59]}  Be7 {[%clk 0:02:48]} 11. Bb2 {[%clk 0:02:59]}  Bb7 {[%clk 0:02:49]} 12. Be2 {[%clk 0:02:56]}  Nbd7 {[%clk 0:02:49]} 13. O-O {[%clk 0:02:55]}  Rac8 {[%clk 0:02:49]} 14. Rac1 {[%clk 0:02:55]}  a5 {[%clk 0:02:38]} 15. bxa5 {[%clk 0:02:46]}  bxa5 {[%clk 0:02:39]} 16. Rfd1 {[%clk 0:02:45]}  Nc5 {[%clk 0:02:34]} 1/2-1/2


[Site "https://www.chess.com"]

[Event "Titled Tuesday Blitz October 12 2021"]
[White "Martic, Ivan"]
[Black "Tristan, Leonardo"]
[WhiteFideId "929301"]
[BlackFideId "113816"]
[WhiteElo "2290"]
[BlackElo "2404"]
[Result "0-1"]
[Round "09"]
[TimeControl "180+1"]
[Date "2021.10.12"]
[WhiteClock "0:00:14"]
[BlackClock "0:00:18"]

1. e4 {[%clk 0:02:53]}  d5 {[%clk 0:02:59]} 2. exd5 {[%clk 0:02:52]}  Qxd5 {[%clk 0:03:00]} 3. Nc3 {[%clk 0:02:52]}  Qa5 {[%clk 0:03:00]} 4. d4 {[%clk 0:02:52]}  Nf6 {[%clk 0:03:00]} 5. Nf3 {[%clk 0:02:52]}  Bf5 {[%clk 0:03:00]} 6. Bc4 {[%clk 0:02:44]}  e6 {[%clk 0:03:00]} 7. Bd2 {[%clk 0:02:42]}  Bb4 {[%clk 0:03:00]} 8. a3 {[%clk 0:02:41]}  Bxc3 {[%clk 0:03:00]} 9. Bxc3 {[%clk 0:02:41]}  Qb6 {[%clk 0:03:01]} 10. Qe2 {[%clk 0:02:39]}  O-O {[%clk 0:03:00]} 11. O-O-O {[%clk 0:02:36]}  Nc6 {[%clk 0:03:00]} 12. Ne5 {[%clk 0:02:26]}  Nd5 {[%clk 0:02:22]} 13. Bxd5 {[%clk 0:02:07]}  exd5 {[%clk 0:02:22]} 14. g4 {[%clk 0:01:59]}  Nxe5 {[%clk 0:01:52]} 15. gxf5 {[%clk 0:01:56]}  Nc4 {[%clk 0:01:47]} 16. Rhg1 {[%clk 0:01:51]}  Rfe8 {[%clk 0:01:44]} 17. Qg4 {[%clk 0:01:50]}  Qh6+ {[%clk 0:01:44]} 18. Kb1 {[%clk 0:01:50]}  Re4 {[%clk 0:01:45]} 19. Qg3 {[%clk 0:01:45]}  Nd6 {[%clk 0:01:18]} 20. f3 {[%clk 0:01:41]}  Re2 {[%clk 0:01:12]} 21. Rde1 {[%clk 0:01:22]}  Rae8 {[%clk 0:01:09]} 22. Rxe2 {[%clk 0:01:23]}  Rxe2 {[%clk 0:01:10]} 23. Bb4 {[%clk 0:01:22]}  Qf6 {[%clk 0:00:54]} 24. h4 {[%clk 0:01:08]}  Ne8 {[%clk 0:00:45]} 25. Qg4 {[%clk 0:00:58]}  b6 {[%clk 0:00:45]} 26. h5 {[%clk 0:00:55]}  a5 {[%clk 0:00:45]} 27. Be1 {[%clk 0:00:55]}  Qe7 {[%clk 0:00:33]} 28. Bh4 {[%clk 0:00:53]}  f6 {[%clk 0:00:33]} 29. h6 {[%clk 0:00:53]}  c5 {[%clk 0:00:26]} 30. hxg7 {[%clk 0:00:50]}  c4 {[%clk 0:00:26]} 31. c3 {[%clk 0:00:46]}  b5 {[%clk 0:00:25]} 32. f4 {[%clk 0:00:36]}  b4 {[%clk 0:00:23]} 33. axb4 {[%clk 0:00:34]}  axb4 {[%clk 0:00:24]} 34. Qf3 {[%clk 0:00:34]}  Nc7 {[%clk 0:00:18]} 35. Bxf6 {[%clk 0:00:23]}  Re1+ {[%clk 0:00:18]} 36. Rxe1 {[%clk 0:00:20]}  Qxe1+ {[%clk 0:00:19]} 37. Ka2 {[%clk 0:00:21]}  b3+ {[%clk 0:00:19]} 38. Ka3 {[%clk 0:00:22]}  Qa1+ {[%clk 0:00:17]} 39. Kb4 {[%clk 0:00:21]}  Qa6 {[%clk 0:00:17]} 40. Be7 {[%clk 0:00:14]}  Qb5+ {[%clk 0:00:17]} 41. Ka3 {[%clk 0:00:14]}  Qa5# {[%clk 0:00:18]} 0-1


[Site "https://www.chess.com"]

[Event "Titled Tuesday Blitz October 12 2021"]
[White "Mirzoev, Azer"]
[Black "Khademalsharieh, Sarasadat"]
[WhiteFideId "13400304"]
[BlackFideId "12512214"]
[WhiteElo "2525"]
[BlackElo "2431"]
[Result "1-0"]
[Round "09"]
[TimeControl "180+1"]
[Date "2021.10.12"]
[WhiteClock "0:00:05"]
[BlackClock "0:00:05"]

1. d4 {[%clk 0:03:00]}  Nf6 {[%clk 0:02:59]} 2. Nf3 {[%clk 0:03:01]}  e6 {[%clk 0:02:59]} 3. c4 {[%clk 0:03:01]}  b6 {[%clk 0:02:59]} 4. Nc3 {[%clk 0:03:01]}  Bb4 {[%clk 0:02:58]} 5. Qb3 {[%clk 0:03:01]}  a5 {[%clk 0:02:57]} 6. Bg5 {[%clk 0:03:00]}  h6 {[%clk 0:02:53]} 7. Bh4 {[%clk 0:03:00]}  g5 {[%clk 0:02:50]} 8. Bg3 {[%clk 0:03:00]}  Ne4 {[%clk 0:02:50]} 9. e3 {[%clk 0:02:59]}  Bb7 {[%clk 0:02:50]} 10. Nd2 {[%clk 0:02:51]}  Bxc3 {[%clk 0:02:40]} 11. bxc3 {[%clk 0:02:50]}  Nxd2 {[%clk 0:02:38]} 12. Kxd2 {[%clk 0:02:50]}  d6 {[%clk 0:02:38]} 13. f3 {[%clk 0:02:48]}  Nd7 {[%clk 0:02:38]} 14. Kc2 {[%clk 0:02:41]}  Qe7 {[%clk 0:02:37]} 15. Kb2 {[%clk 0:02:27]}  f5 {[%clk 0:02:28]} 16. Bd3 {[%clk 0:01:43]}  Rf8 {[%clk 0:02:21]} 17. Qc2 {[%clk 0:01:33]}  O-O-O {[%clk 0:02:18]} 18. Rhe1 {[%clk 0:01:29]}  Qf7 {[%clk 0:02:11]} 19. e4 {[%clk 0:01:19]}  f4 {[%clk 0:02:06]} 20. Bf2 {[%clk 0:01:19]}  e5 {[%clk 0:02:06]} 21. Rad1 {[%clk 0:01:10]}  c5 {[%clk 0:01:46]} 22. Ka1 {[%clk 0:01:10]}  Kb8 {[%clk 0:01:44]} 23. Rb1 {[%clk 0:01:09]}  Rc8 {[%clk 0:01:43]} 24. Qb3 {[%clk 0:01:08]}  Rc6 {[%clk 0:01:30]} 25. h3 {[%clk 0:00:58]}  Ba6 {[%clk 0:01:27]} 26. Qa4 {[%clk 0:00:56]}  Bb7 {[%clk 0:01:21]} 27. Re2 {[%clk 0:00:51]}  cxd4 {[%clk 0:01:16]} 28. cxd4 {[%clk 0:00:51]}  exd4 {[%clk 0:01:15]} 29. Bxd4 {[%clk 0:00:41]}  Rfc8 {[%clk 0:01:10]} 30. Reb2 {[%clk 0:00:39]}  Kc7 {[%clk 0:00:52]} 31. Qa3 {[%clk 0:00:37]}  Ra8 {[%clk 0:00:48]} 32. Be2 {[%clk 0:00:33]}  Ba6 {[%clk 0:00:40]} 33. Rc2 {[%clk 0:00:23]}  Kd8 {[%clk 0:00:36]} 34. Qb2 {[%clk 0:00:22]}  Ke7 {[%clk 0:00:31]} 35. Rd1 {[%clk 0:00:20]}  Bxc4 {[%clk 0:00:26]} 36. Bxc4 {[%clk 0:00:17]}  Rxc4 {[%clk 0:00:26]} 37. Rxc4 {[%clk 0:00:17]}  Qxc4 {[%clk 0:00:26]} 38. Bxb6 {[%clk 0:00:16]}  Rb8 {[%clk 0:00:26]} 39. Qg7+ {[%clk 0:00:16]}  Qf7 {[%clk 0:00:25]} 40. Qxf7+ {[%clk 0:00:15]}  Kxf7 {[%clk 0:00:25]} 41. Bxa5 {[%clk 0:00:15]}  Ke6 {[%clk 0:00:25]} 42. Rb1 {[%clk 0:00:15]}  Ra8 {[%clk 0:00:25]} 43. Bb4 {[%clk 0:00:14]}  Ne5 {[%clk 0:00:24]} 44. a3 {[%clk 0:00:14]}  Nd3 {[%clk 0:00:24]} 45. Ka2 {[%clk 0:00:14]}  h5 {[%clk 0:00:20]} 46. Kb3 {[%clk 0:00:13]}  Ra6 {[%clk 0:00:19]} 47. Rd1 {[%clk 0:00:13]}  Ne5 {[%clk 0:00:19]} 48. a4 {[%clk 0:00:12]}  g4 {[%clk 0:00:19]} 49. hxg4 {[%clk 0:00:12]}  hxg4 {[%clk 0:00:20]} 50. fxg4 {[%clk 0:00:12]}  Nxg4 {[%clk 0:00:20]} 51. a5 {[%clk 0:00:12]}  Ne3 {[%clk 0:00:20]} 52. Rd2 {[%clk 0:00:12]}  Ke5 {[%clk 0:00:20]} 53. Ka4 {[%clk 0:00:12]}  Kxe4 {[%clk 0:00:19]} 54. Rxd6 {[%clk 0:00:11]}  Ra8 {[%clk 0:00:14]} 55. Re6+ {[%clk 0:00:11]}  Kf5 {[%clk 0:00:14]} 56. Re7 {[%clk 0:00:10]}  Nxg2 {[%clk 0:00:14]} 57. Rf7+ {[%clk 0:00:10]}  Ke6 {[%clk 0:00:13]} 58. Rg7 {[%clk 0:00:10]}  f3 {[%clk 0:00:13]} 59. Rg3 {[%clk 0:00:10]}  f2 {[%clk 0:00:12]} 60. Rf3 {[%clk 0:00:10]}  Kd5 {[%clk 0:00:08]} 61. Rxf2 {[%clk 0:00:10]}  Ne3 {[%clk 0:00:08]} 62. Rf3 {[%clk 0:00:09]}  Nc4 {[%clk 0:00:08]} 63. Rd3+ {[%clk 0:00:09]}  Ke4 {[%clk 0:00:08]} 64. Rc3 {[%clk 0:00:08]}  Kd4 {[%clk 0:00:08]} 65. Rc2 {[%clk 0:00:09]}  Ne3 {[%clk 0:00:08]} 66. Rc1 {[%clk 0:00:08]}  Kd5 {[%clk 0:00:08]} 67. Rb1 {[%clk 0:00:08]}  Nc4 {[%clk 0:00:08]} 68. Rd1+ {[%clk 0:00:07]}  Ke6 {[%clk 0:00:07]} 69. Rc1 {[%clk 0:00:08]}  Kd5 {[%clk 0:00:07]} 70. Rd1+ {[%clk 0:00:07]}  Ke4 {[%clk 0:00:07]} 71. Rh1 {[%clk 0:00:07]}  Rb8 {[%clk 0:00:06]} 72. Rh4+ {[%clk 0:00:07]}  Kd3 {[%clk 0:00:05]} 73. Rh3+ {[%clk 0:00:07]}  Ne3 {[%clk 0:00:03]} 74. a6 {[%clk 0:00:07]}  Kc4 {[%clk 0:00:03]} 75. Rh4+ {[%clk 0:00:06]}  Kd5 {[%clk 0:00:02]} 76. Rh5+ {[%clk 0:00:05]}  Kc6 {[%clk 0:00:02]} 77. a7 {[%clk 0:00:04]}  Ra8 {[%clk 0:00:03]} 78. Bc5 {[%clk 0:00:04]}  Kb7 {[%clk 0:00:04]} 79. Bxe3 {[%clk 0:00:04]}  Ka6 {[%clk 0:00:04]} 80. Rh6+ {[%clk 0:00:04]}  Kb7 {[%clk 0:00:04]} 81. Kb5 {[%clk 0:00:04]}  Kc8 {[%clk 0:00:04]} 82. Rh8+ {[%clk 0:00:04]}  Kb7 {[%clk 0:00:04]} 83. Rh7+ {[%clk 0:00:05]}  Kc8 {[%clk 0:00:05]} 84. Kc6 {[%clk 0:00:05]} 1-0


[Site "https://www.chess.com"]